[Event "44th Chess Olympiad Open 2022"]
[Site "Chennai"]
[Date "2022.08.08"]
[Round "10.10"]
[White "Juksta, Karolis"]
[Black "Fressinet, Laurent"]
[Result "0-1"]
[ECO "E25"]
[WhiteElo "2412"]
[BlackElo "2631"]
[Annotator "TA"]
[PlyCount "86"]
[EventDate "2022.07.29"]
[EventType "team-tourn"]
[EventCountry "IND"]
[SourceTitle "playchess.com"]
[Source "ChessBase"]
[SourceQuality "1"]
[WhiteTeam "Lithuania"]
[BlackTeam "France"]
[WhiteTeamCountry "LTU"]
[BlackTeamCountry "FRA"]
[TimeControl "40/5400+30:1800+30"]

{[%evp 22,86,38,12,24,0,8,0,0,-9,-10,-10,-6,-39,-47,-50,6,-8,-8,-10,-2,-31,-22,-33,-30,-15,-6,-47,-52,-43,-23,-4,-10,-10,0,0,-4,-31,-28,-55,0,-49,-17,-49,-46,-46,-60,-77,-67,-306,-291,-297,-297,-558,-548,-793,-289,-5293,-5290,-5410,-5402,-29983,-29984,-29989,-29981,-29990,-29982]} 1. d4 {[%emt 0:00:03]} Nf6 {[%emt 0:00:16]} 2. c4 {[%emt 0:00:06]} e6 {[%emt 0:00:05]} 3. Nc3 {[%emt 0:00:05]} Bb4 {[%emt 0:00:04]} 4. a3 {[%emt 0:00:06]} Bxc3+ {[%emt 0:00:13]} 5. bxc3 {[%emt 0:00:06]} c5 {[%emt 0:00:18]} 6. f3 {[%emt 0:00:06]} d5 {[%emt 0:00:24]} 7. cxd5 {[%emt 0:00:28]} Nxd5 {[%emt 0:00:30]} 8. dxc5 {[%emt 0:00:26]} Qa5 {[%emt 0:00:26]} 9. e4 {[%emt 0:00:28]} Ne7 {[%emt 0:00:06]} 10. Be3 {[%emt 0:00:59]} O-O {[%emt 0:00:15]} 11. Qb3 {[%emt 0:02:03]} Qc7 {[%emt 0:00:33]} 12. Nh3 {[%emt 0:16:34]} Nec6 {[%emt 0:12:04] [#] E25: Nimzo-Indian: Sämisch: 5...c5 6 f3 d5 7 cxd5.} 13. Be2 $146 {[%emt 0:09:09]} ({Predecessor:} 13. Nf2 Na5 14. Qc2 e5 15. Be2 Be6 16. O-O Nd7 17. Rfb1 Nxc5 18. Rb5 Nd7 19. c4 a6 20. Rb4 Rfc8 21. a4 Bxc4 22. Bxc4 Nxc4 23. Rc1 b5 24. axb5 axb5 25. Rxb5 Qd8 26. Qe2 Nxe3 27. Qxe3 {½-½ (27) Berkes,F (2606)-Delchev,A (2613) Heraklion 2007}) 13... Na5 {[%emt 0:03:40]} 14. Qb2 {[%emt 0:03:07]} e5 {[%emt 0:04:55] The position is equal.} 15. Nf2 {[%emt 0:00:45]} Be6 {[%emt 0:01:56]} 16. O-O {[%emt 0:03:54]} Nd7 {[%emt 0:02:47]} 17. Qb4 {[%emt 0:19:58]} Nb3 {[%emt 0:06:44] Pair of Knights!} 18. Rab1 {[%emt 0:01:01]} Nbxc5 {[%emt 0:04:06]} (18... Ndxc5 $15 19. Rfd1 b6) 19. Nd3 {[%emt 0:05:51][%cal Rd3c5]} b6 {[%emt 0:03:14]} 20. Nxc5 {[%emt 0:01:04]} Nxc5 {[%emt 0:00:10]} 21. Bxc5 {[%emt 0:10:43]} bxc5 {[%emt 0:02:11]} 22. Qb7 {[%emt 0:03:14]} Qa5 {[%emt 0:03:45][%csl LRa3,LRc3]} 23. Rfc1 {[%emt 0:00:30]} c4 {[%emt 0:01:54]} 24. a4 {[%emt 0:05:01]} (24. Qb5 $5 {[%cal Rb5a5]} Qc7 25. Qb7 Qc5+ 26. Kf1 $11) 24... h6 {[%emt 0:13:28]} 25. Kf1 {[%emt 0:01:41]} Rad8 {[%emt 0:03:23]} 26. Qb4 {[%emt 0:04:31]} Qc7 {[%emt 0:01:21]} 27. Qb7 {[%emt 0:02:18]} Qc5 {[%emt 0:02:23]} 28. Qb5 {[%emt 0:05:02]} Qe3 {[%emt 0:02:03] [#] White must now prevent ...Rd2.} 29. Rc2 {[%emt 0:01:30]} Qf4 {[%emt 0:03:35]} 30. Kg1 {[%emt 0:00:13]} Rc8 {[%emt 0:05:08]} ({Better is} 30... Rb8 $15 31. Qxb8 Rxb8 32. Rxb8+ Kh7) 31. Rd1 {[%emt 0:03:03]} (31. g3 $1 $11 Qe3+ 32. Kg2) 31... h5 {[%emt 0:07:03][%cal Bh6h5,Bh5h4][%mdl 32]} 32. Qb1 {[%emt 0:01:01]} Rfd8 {[%emt 0:01:48]} 33. Rxd8+ {[%emt 0:00:39]} Rxd8 {[%emt 0:00:06]} 34. Qe1 {[%emt 0:00:46] Against Rd2} h4 {[%emt 0:03:45] Black is much more active.} 35. Qf2 $2 {[%emt 0:00:54] [#] This move loses the game for White.} ({White should play} 35. g3 $15 hxg3 36. hxg3) 35... Rd2 $1 $19 {[%emt 0:04:38]} 36. Rxd2 {[%emt 0:00:01]} Qxd2 {[%emt 0:00:06][%mdl 4096] Endgame KQB-KQB} 37. Bf1 $2 {[%emt 0:00:06]} (37. Qxh4 Qxe2 38. Qd8+ Kh7 39. Qh4+ Kg6 40. Qg3+ Kh7 41. Qh4+ Kg6 42. Qg3+ Kf6 43. Qh4+ g5 44. Qh6+ Ke7 45. Qxg5+ f6 46. Qc1) 37... Qxc3 {[%emt 0:01:31] And now ...Qc1 would win.} 38. Qxa7 {[%emt 0:00:04]} Qd2 {[%emt 0:02:44]} (38... Qc1 {Threatens to win with ...c3.} 39. Qb6 g5) 39. Qb8+ $2 {[%emt 0:01:47]} (39. Qf2 Qa5 40. Qxh4) 39... Kh7 {[%emt 0:00:02]} 40. Qb1 {[%emt 0:00:29]} c3 {[%emt 0:02:27] ( -> ...c2)} 41. Bd3 {[%emt 0:05:29] Inhibits c2.} h3 {[%emt 0:02:44][%csl Gh3][%cal Rd2g2] Black mates.} 42. Qc2 {[%emt 0:00:36]} Qe1+ {[%emt 0:00:30]} 43. Bf1 {[%emt 0:00:34]} Bc4 {[%emt 0:00:16] Weighted Error Value: White=0.71/Black=0.22 (precise)} 0-1

[Event "44th Chess Olympiad Open 2022"]
[Site "Chennai"]
[Date "2022.08.08"]
[Round "10.11"]
[White "Christiansen, Johan-Sebastian"]
[Black "Hamitevici, Vladimir"]
[Result "0-1"]
[ECO "B13"]
[WhiteElo "2593"]
[BlackElo "2473"]
[Annotator "TA"]
[PlyCount "94"]
[EventDate "2022.07.29"]
[EventType "team-tourn"]
[EventCountry "IND"]
[SourceTitle "playchess.com"]
[Source "ChessBase"]
[SourceQuality "1"]
[WhiteTeam "Norway"]
[BlackTeam "Moldova"]
[WhiteTeamCountry "NOR"]
[BlackTeamCountry "MDA"]
[TimeControl "40/5400+30:1800+30"]

{[%evp 9,94,27,33,26,37,33,22,31,31,5,37,27,52,30,36,30,43,36,37,41,58,64,39,26,38,31,47,30,23,22,31,33,30,27,27,29,34,16,19,16,27,4,14,17,27,0,45,35,37,31,64,60,123,121,118,-3,-4,-72,-16,-23,-23,-355,-339,-316,-278,-816,-785,-29984,-29985,-29972,-881,-872,-604,-1707,-1649,-1413,-497,-479,-410,-786,-681,-1020,-1022,-3768,-2934,-29993,-29994]} 1. e4 {[%emt 0:00:03]} c6 {[%emt 0:00:35]} 2. d4 {[%emt 0:02:34]} d5 {[%emt 0:00:09]} 3. exd5 {[%emt 0:00:04]} cxd5 {[%emt 0:00:05]} 4. Bd3 {[%emt 0:00:04]} Nc6 {[%emt 0:05:24]} 5. c3 {[%emt 0:00:06]} e6 {[%emt 0:00:02]} 6. Nf3 {[%emt 0:00:53] B13: Caro-Kann: Exchange Variation and Panov-Botvinnik Attack.} Bd6 {[%emt 0:00:16]} 7. O-O {[%emt 0:00:45]} Nge7 {[%emt 0:01:46]} 8. Re1 {[%emt 0:00:25] The position is equal.} O-O {[%emt 0:12:27]} 9. b3 {[%emt 0:00:51] [#]} Bd7 $146 {[%emt 0:07:52]} (9... f6 $5 {[%cal Re6e5]}) ({Predecessor:} 9... f6 10. c4 dxc4 11. Bxc4 Kh8 12. Ba3 Nd5 13. Bxd6 Qxd6 14. Nbd2 b6 15. Qe2 Re8 {½-½ (74) Antipov,M (2592)-Yoo,C (2548) Saint Louis 2022}) 10. Nbd2 {[%emt 0:14:21][%cal Od3h7]} Qc7 {[%emt 0:04:41]} 11. Nf1 {[%emt 0:09:49]} Nf5 {[%emt 0:10:11]} 12. Ng3 {[%emt 0:15:06]} Nxg3 {[%emt 0:08:36]} 13. hxg3 {[%emt 0:01:57]} Rae8 {[%emt 0:15:21]} 14. c4 {[%emt 0:21:40]} e5 {[%emt 0:06:28][%cal Be6e5,Be5e4][%mdl 32]} 15. c5 {[%emt 0:04:03]} e4 {[%emt 0:01:09] ...Be7 is the strong threat.} 16. cxd6 {[%emt 0:00:33]} Qxd6 {[%emt 0:02:09]} 17. Bf4 {[%emt 0:00:24]} Qa3 {[%emt 0:01:04] [#]} 18. Ng5 $1 {[%emt 0:08:31][%cal Rd3e4]} exd3 {[%emt 0:03:20]} 19. Rxe8 {[%emt 0:00:28]} Bxe8 {[%emt 0:00:29][%cal Bd7e8,Be8f7,Bf7d5][%mdl 32]} 20. Qxd3 {[%emt 0:00:21][%csl Gg5][%cal Rd3h7]} g6 {[%emt 0:00:11]} 21. Nf3 {[%emt 0:00:46]} f6 {[%emt 0:08:31]} 22. Qb5 {[%emt 0:03:40][%csl LRb7,LRd5]} g5 {[%emt 0:03:52]} 23. Be3 {[%emt 0:02:18]} ({Of course not} 23. Qxd5+ Bf7 24. Qd6 Qb2 $17) 23... Qe7 {[%emt 0:01:52]} 24. Qxd5+ {[%emt 0:01:44]} Bf7 {[%emt 0:00:02]} 25. Qb5 {[%emt 0:01:20]} Rd8 {[%emt 0:00:21] Inhibits d5.} 26. Re1 {[%emt 0:01:34][%cal Re3g5]} Qd7 {[%emt 0:00:56]} 27. Qc5 {[%emt 0:07:11]} Bd5 {[%emt 0:01:19]} 28. Nh2 {[%emt 0:00:02]} h5 {[%emt 0:01:11]} 29. f3 {[%emt 0:00:39]} Qg7 {[%emt 0:02:47]} 30. Bf2 {[%emt 0:00:30]} f5 {[%emt 0:00:37]} ({Black should play} 30... b6 $14 31. Qc3 Qd7) 31. Nf1 $16 {[%emt 0:02:16]} f4 {[%emt 0:00:20]} 32. Kh1 {[%emt 0:01:01]} (32. b4 $16) 32... g4 $11 {[%emt 0:00:47]} 33. fxg4 {[%emt 0:00:16] [#]} (33. Nh2 $11 {remains equal.}) 33... Qxg4 {[%emt 0:00:45] Black is more active.} (33... fxg3 $1 $17 34. Nxg3 Qxg4) 34. Nh2 {[%emt 0:00:22]} Qg6 $40 {[%emt 0:00:56][%mdl 128] Black mounts an attack.} 35. g4 {[%emt 0:00:24][%mdl 8192] This move loses the game for White.} (35. Qc3 $1 $11 {and White stays safe.}) 35... hxg4 $19 {[%emt 0:00:18] White must now prevent ...g3.} 36. Bh4 {[%emt 0:00:01]} Rd7 {[%emt 0:00:23][%cal Bd8d7,Bd7h7,Bh7h4][%mdl 32]} 37. Rf1 $2 {[%emt 0:00:46]} (37. Kg1) 37... Qe4 {[%emt 0:00:26][%csl Gd5,LRd4,LRg2][%cal Re4g2]} 38. Rg1 {[%emt 0:00:58]} Rh7 {[%emt 0:00:14]} 39. Nf3 {[%emt 0:00:22]} Qe6 {[%emt 0:01:10]} (39... Qf5 $142 40. Rf1 gxf3 41. Rxf3 Qb1+ 42. Kh2 Bxf3 43. Qg5+ Rg7 44. gxf3 Rxg5 45. Bxg5 Qf1 46. Bxf4 Nxd4 47. Kg3 Qxf3+ 48. Kh4 Qxf4+ 49. Kh3 Nf5 50. Kg2 Ne3+ 51. Kh3 Qg4+ 52. Kh2 Qg2#) 40. Re1 {[%emt 0:00:23]} Qf7 {[%emt 0:00:55]} (40... gxf3 $2 41. Rxe6 Bxe6 {[#]} 42. Kg1 $1 $18) (40... Rxh4+ $2 41. Kg1 b6 42. Rxe6 bxc5 43. Rg6+ Kf7 44. Nxh4 $18) 41. Ng5 {[%emt 0:06:19]} Rxh4+ {[%emt 0:04:04]} 42. Kg1 {[%emt 0:00:01]} Qd7 {[%emt 0:03:08]} (42... Qf5 $142 43. Re8+ Kg7) 43. Ne6 {[%emt 0:03:03]} Rh5 {[%emt 0:09:27]} 44. Qf8+ {[%emt 0:22:01]} (44. Nxf4 $142 Rf5 45. Nxd5 Qxd5 46. Kh2) 44... Kh7 {[%emt 0:00:08]} 45. Qc5 {[%emt 0:00:07] aiming for Nf8+.} Qf7 {[%emt 0:03:34] And now ...f3 would win.} ({Worse is} 45... Bxe6 46. Qxh5+ Kg7 47. Qg5+ Kh7 48. Qh5+ Kg7 49. Qg5+ Kh7 50. Qh5+ $11) 46. Nd8 {[%emt 0:00:09]} Qf6 {[%emt 0:01:33]} 47. Nxc6 {[%emt 0:00:23] [#]} Rh1+ $3 {[%emt 0:00:18][%mdl 512] Weighted Error Value: White=1.07/Black=0.31} 0-1

[Event "44th Chess Olympiad Open 2022"]
[Site "Chennai"]
[Date "2022.08.08"]
[Round "10.11"]
[White "Macovei, Andrei"]
[Black "Hammer, Jon Ludvig"]
[Result "0-1"]
[ECO "C67"]
[WhiteElo "2478"]
[BlackElo "2638"]
[Annotator "TA"]
[PlyCount "84"]
[EventDate "2022.07.29"]
[EventType "team-tourn"]
[EventCountry "IND"]
[SourceTitle "playchess.com"]
[Source "ChessBase"]
[SourceQuality "1"]
[WhiteTeam "Moldova"]
[BlackTeam "Norway"]
[WhiteTeamCountry "MDA"]
[BlackTeamCountry "NOR"]
[TimeControl "40/5400+30:1800+30"]

{[%evp 12,84,26,16,27,28,45,19,30,18,8,0,0,0,7,0,29,14,54,37,55,62,91,0,0,0,0,0,0,-15,-24,-12,-6,-11,-16,-62,-63,-62,-62,-66,-67,-62,-60,-56,-62,-73,0,0,0,0,0,-16,-18,-47,-47,-58,-62,-215,-206,-232,-202,-182,-186,-302,-291,-297,-291,-319,-63,-326,-312,-5418,-5407,-1904,-1287]} 1. e4 {[%emt 0:00:12]} e5 {[%emt 0:00:06]} 2. Nf3 {[%emt 0:00:03]} Nc6 {[%emt 0:00:09]} 3. Bb5 {[%emt 0:00:03]} Nf6 {[%emt 0:00:09]} 4. O-O {[%emt 0:01:26]} Nxe4 {[%emt 0:00:07]} 5. Re1 {[%emt 0:00:03]} Nd6 {[%emt 0:00:11]} 6. Nxe5 {[%emt 0:00:04]} Be7 {[%emt 0:00:10]} 7. Bf1 {[%emt 0:00:03]} Nf5 {[%emt 0:00:44] C67: Ruy Lopez: Berlin Defence: 4 0-0 Nxe4.} 8. Nf3 {[%emt 0:01:06]} O-O {[%emt 0:00:14]} 9. d4 {[%emt 0:00:08]} d5 {[%emt 0:00:07] The position is equal.} 10. Nc3 {[%emt 0:02:00]} Bb4 {[%emt 0:00:09]} 11. a3 {[%emt 0:04:31]} Bxc3 {[%emt 0:00:08]} 12. bxc3 {[%emt 0:00:02]} Nd6 {[%emt 0:02:46] [#] Against c4} 13. a4 $146 {[%emt 0:15:47]} ({Predecessor:} 13. h3 Bf5 14. Bf4 Re8 15. Rxe8+ Qxe8 16. Nh4 Be4 17. f3 Bg6 18. Nxg6 hxg6 19. Bd3 {½-½ (54) Nakamura,H (2736)-Carlsen,M (2863) chess24.com INT 2020}) 13... Na5 {[%emt 0:14:33]} 14. Bd3 {[%emt 0:11:36]} Bf5 {[%emt 0:45:29]} (14... Nac4 {looks sharper.} 15. Ne5 Re8 16. Qf3 Be6) 15. Re5 {[%emt 0:08:57]} Be4 {[%emt 0:03:38]} 16. Ng5 $1 {[%emt 0:02:48][%cal Oe5d5]} c6 {[%emt 0:12:54]} 17. Qh5 {[%emt 0:15:16]} ({Of course not} 17. Nxe4 dxe4 18. Bxe4 Nac4 $11) (17. Ba3 $1 $16 {[%cal Rd3e4]} Nac4 18. Bxd6 (18. Bxe4 Nxe4 19. Be7 Qc7 $14) (18. Nxe4 dxe4 19. Bxd6 Nxe5 $16) 18... Nxe5 19. Nxe4 dxe4 20. Bxf8 (20. dxe5 exd3 21. Bxf8 Qxf8 $16) 20... exd3 21. Bxg7 (21. dxe5 Qxf8 22. cxd3 Qc5 $16) 21... Kxg7 22. dxe5) 17... Bxd3 $11 {[%emt 0:00:53]} 18. cxd3 {[%emt 0:02:50][%csl Gg5][%cal Rh5h7]} h6 {[%emt 0:00:01]} 19. Nf3 {[%emt 0:02:38][%cal Oc1h6]} f6 $1 $36 {[%emt 0:00:25][%mdl 2048] Black fights for an advantage.} 20. Re3 {[%emt 0:18:03] Black must now prevent Ba3.} Nb3 {[%emt 0:00:12] Pair of Knights!} 21. Rb1 {[%emt 0:00:01]} Nxc1 {[%emt 0:00:09]} 22. Rxc1 {[%emt 0:00:01]} Re8 {[%emt 0:00:23]} 23. c4 {[%emt 0:00:32]} (23. Qg4 $11) 23... Rxe3 $15 {[%emt 0:00:27]} 24. fxe3 {[%emt 0:00:02]} Qe7 {[%emt 0:00:15]} 25. e4 {[%emt 0:04:39]} dxc4 {[%emt 0:01:14]} 26. dxc4 {[%emt 0:00:05]} (26. e5 cxd3 $1 27. Rd1 fxe5 28. Nxe5 Re8 $17) 26... Qxe4 {[%emt 0:00:16] Hoping for ...Qe3+.} 27. Re1 {[%emt 0:00:53][%cal Bc1e1,Be1e7,Be7b7][%mdl 32] Prevents Qe3+.} Qd3 {[%emt 0:04:31]} (27... Qc2 28. c5 Nc4 29. Re7 $11) 28. c5 {[%emt 0:01:00]} Nf7 {[%emt 0:00:22]} (28... Nf5 $17 29. Qg6 b6 30. cxb6 axb6) 29. h4 $11 {[%emt 0:01:05]} b6 {[%emt 0:07:13]} 30. Re7 {[%emt 0:00:17]} Qc4 {[%emt 0:00:14]} 31. Kh2 {[%emt 0:02:03]} bxc5 {[%emt 0:00:55]} 32. Qxc5 {[%emt 0:01:16]} ({Much weaker is} 32. Qg6 Rf8 33. Qe4 (33. Rxa7 cxd4 34. Qe4 Rd8 $17) 33... cxd4 34. Qxd4 Qxd4 35. Nxd4 c5 $17) 32... Qxa4 {[%emt 0:01:22] Threatens to win with ...Qb5.} 33. Rb7 {[%emt 0:00:18] Inhibits Qb5.} a5 {[%emt 0:00:48]} 34. d5 $2 {[%emt 0:01:52]} ({White should play} 34. Kh3 $15) 34... Qf4+ $19 {[%emt 0:00:52]} 35. Kh1 {[%emt 0:00:01]} Ne5 {[%emt 0:05:13]} 36. Qe7 {[%emt 0:01:47][%csl Gb7][%cal Re7g7]} Qg4 {[%emt 0:00:03]} 37. d6 {[%emt 0:03:20]} (37. Ng5 {was worth a try.} Qxh4+ 38. Nh3) 37... Nxf3 {[%emt 0:00:03]} 38. gxf3 {[%emt 0:00:01]} Qxf3+ {[%emt 0:00:12]} 39. Kh2 {[%emt 0:00:01][%csl Gb7][%cal Re7g7]} Qf4+ $2 {[%emt 0:00:19]} (39... Qf2+ $19 40. Kh3 Qf3+ 41. Kh2 Qf4+ 42. Kh3 Qf1+ 43. Kh2 Qf4+ 44. Kh3 Qf1+ 45. Kh2 Qf4+) 40. Kh3 $2 {[%emt 0:02:48][%mdl 8192] [#]} (40. Kg2 $1 $15 Qg4+ 41. Kf1) 40... Qf5+ $1 {[%emt 0:00:02]} 41. Kg2 $2 {[%emt 0:30:08] [#]} (41. Kh2 Qe5+ 42. Qxe5 fxe5 43. Re7) 41... Qg6+ $1 {[%emt 0:30:18]} 42. Kh1 {[%emt 0:00:00]} Re8 {[%emt 0:00:00] Weighted Error Value: White=0.47/Black=0.18 (very precise)} 0-1

[Event "44th Chess Olympiad Open 2022"]
[Site "Chennai"]
[Date "2022.08.08"]
[Round "10.11"]
[White "Ceres, Dragos"]
[Black "Urkedal, Frode Olav Olsen"]
[Result "1-0"]
[ECO "C47"]
[WhiteElo "2378"]
[BlackElo "2555"]
[Annotator "TA"]
[PlyCount "119"]
[EventDate "2022.07.29"]
[EventType "team-tourn"]
[EventCountry "IND"]
[SourceTitle "playchess.com"]
[Source "ChessBase"]
[SourceQuality "1"]
[WhiteTeam "Moldova"]
[BlackTeam "Norway"]
[WhiteTeamCountry "MDA"]
[BlackTeamCountry "NOR"]
[TimeControl "40/5400+30:1800+30"]

{[%evp 23,119,7,7,0,18,14,13,15,18,16,18,17,14,16,10,18,18,13,31,17,12,8,43,30,41,0,0,0,0,-33,-36,-19,-20,-19,-1,-3,-6,0,29,33,35,35,64,12,22,22,17,33,18,27,26,25,68,70,90,90,89,86,176,99,88,86,89,70,70,70,72,71,87,70,88,77,70,70,87,87,87,87,87,87,88,88,89,104,155,155,155,155,252,252,247,255,255,243,1474,1216,923,755]} 1. e4 {[%emt 0:00:06]} e5 {[%emt 0:00:07]} 2. Nf3 {[%emt 0:00:06]} Nc6 {[%emt 0:00:05]} 3. Nc3 {[%emt 0:00:05]} Nf6 {[%emt 0:00:13]} 4. d4 {[%emt 0:00:06]} exd4 {[%emt 0:00:20]} 5. Nxd4 {[%emt 0:00:09]} Bb4 {[%emt 0:00:05]} 6. Nxc6 {[%emt 0:00:55]} bxc6 {[%emt 0:00:08]} 7. Bd3 {[%emt 0:00:04]} d5 {[%emt 0:00:31]} 8. exd5 {[%emt 0:00:20]} O-O {[%emt 0:00:18]} 9. O-O {[%emt 0:00:24]} cxd5 {[%emt 0:00:30]} 10. Bg5 {[%emt 0:03:14]} c6 {[%emt 0:02:50]} 11. Qf3 {[%emt 0:00:17]} Rb8 {[%emt 0:02:38] 11...h6 is the recent fashion.} 12. h3 {[%emt 0:15:22]} Bd6 {[%emt 0:02:22]} 13. b3 {[%emt 0:06:33] C47: Scotch Four Knights and Four Knights with 4 g3.} h6 {[%emt 0:28:05]} 14. Bxf6 {[%emt 0:04:21]} Qxf6 {[%emt 0:00:06]} 15. Qxf6 {[%emt 0:00:05] The position is equal.} gxf6 {[%emt 0:00:05]} 16. Ne2 {[%emt 0:00:08][%cal Bc3e2,Be2g3,Bg3h5][%mdl 32]} Re8 {[%emt 0:06:34]} 17. Rad1 {[%emt 0:05:46]} Be6 {[%emt 0:16:09]} 18. Ng3 {[%emt 0:08:38]} c5 {[%emt 0:09:06] [#]} 19. Nh5 $146 {[%emt 0:04:05]} ({Predecessor:} 19. Nf5 Bf8 20. g4 c4 21. bxc4 dxc4 22. Be4 Rb2 23. a4 c3 24. Bd3 Reb8 25. Ra1 {½-½ (62) Meissner,F (2362)-Kravtsiv,M (2625) Chess.com INT 2020}) 19... Be5 {[%emt 0:00:45]} 20. f4 {[%emt 0:02:31]} Bd4+ {[%emt 0:03:01]} 21. Kh1 {[%emt 0:04:02]} Kh8 {[%emt 0:02:58]} 22. Rf3 {[%emt 0:03:31]} Rb6 {[%emt 0:01:58]} 23. Bf1 {[%emt 0:02:08] Black must now prevent c3.} Bc8 {[%emt 0:06:00]} 24. c3 {[%emt 0:17:16]} Be3 {[%emt 0:00:06]} 25. Rxd5 {[%emt 0:00:09][%cal Of3e3]} Bb7 {[%emt 0:00:07] A strong pair of Bishops.} 26. Bc4 {[%emt 0:00:19][%cal Od5d7]} (26. Rxe3 $5 Rxe3 27. Rd8+ Kh7 28. Kh2 $11 (28. Bd3+ Be4 $17)) 26... Bxd5 {[%emt 0:00:51]} 27. Bxd5 {[%emt 0:00:05]} Rd6 {[%emt 0:02:16]} 28. Bxf7 {[%emt 0:01:45]} Rd1+ {[%emt 0:00:06]} 29. Kh2 {[%emt 0:00:04]} Bg1+ {[%emt 0:00:08]} 30. Kg3 $1 {[%emt 0:00:23]} Re3 {[%emt 0:09:55]} 31. Rxe3 {[%emt 0:01:35]} (31. Nxf6 $2 Rxf3+ 32. Kxf3 Kg7 $19) 31... Bxe3 $11 {[%emt 0:00:02][%mdl 4096] Endgame KRB-KBN} 32. Bc4 {[%emt 0:01:59]} Rd6 {[%emt 0:03:08]} 33. Kf3 {[%emt 0:00:26]} ({Better is} 33. Kg4 $14) 33... Bd2 {[%emt 0:00:16]} 34. Ng3 {[%emt 0:00:05]} Rd8 {[%emt 0:04:49]} 35. Ne4 {[%emt 0:02:50][%csl LRc5,LRf6]} f5 {[%emt 0:00:08]} 36. Ng3 {[%emt 0:00:07]} (36. Nxd2 Rxd2 37. Be6 Kg7 38. Bxf5 Rxa2 $17) 36... Rf8 {[%emt 0:01:13]} 37. Bd3 {[%emt 0:00:28]} Bxc3 {[%emt 0:00:18]} 38. Nxf5 {[%emt 0:00:18]} Bg7 {[%emt 0:00:38]} 39. g4 {[%emt 0:00:28][%cal Bg2g4,Bg4g5][%mdl 32]} Re8 {[%emt 0:00:33]} 40. h4 {[%emt 0:01:42]} Bd4 {[%emt 0:00:27]} (40... Re1 $16 {was necessary.}) 41. h5 {[%emt 0:32:24]} (41. Be4 $18) 41... Re1 {[%emt 0:04:14]} 42. Bc4 {[%emt 0:00:00]} (42. Nxd4 cxd4 43. Be2 Ra1 $15) 42... Bg7 {[%emt 0:01:28]} 43. g5 {[%emt 0:00:00]} Rh1 {[%emt 0:01:27]} 44. Kg2 $1 {[%emt 0:00:00]} (44. Nxh6 Bxh6 45. gxh6 Rxh5 $15) (44. Nxg7 Kxg7 45. Kg4 Rg1+ 46. Kh4 Rh1+ 47. Kg4 Rg1+ 48. Kh4 Rh1+ 49. Kg4 $11) 44... Rd1 {[%emt 0:01:44]} 45. a4 {[%emt 0:00:00]} (45. gxh6 Bb2 $11) (45. Nxh6 Bxh6 46. gxh6 Kh7 $15) 45... Rd2+ {[%emt 0:00:49]} 46. Kg3 {[%emt 0:00:00]} Rd1 {[%emt 0:00:24]} 47. Ne7 {[%emt 0:00:00]} (47. Nxh6 $6 Bxh6 48. gxh6 Kh7 $11) (47. gxh6 Bf8 $11) 47... Rg1+ {[%emt 0:03:07]} 48. Kh2 $1 {[%emt 0:00:00] White is more active.} Bd4 {[%emt 0:05:15]} 49. Nf5 {[%emt 0:00:00]} Rg4 {[%emt 0:01:14]} 50. Nxh6 {[%emt 0:00:00]} ({Don't go for} 50. Nxd4 $2 cxd4 51. gxh6 Rxf4 $19) 50... Rxf4 {[%emt 0:00:19] [#]} 51. Kh3 $1 {[%emt 0:00:00] Prevents Rh4+.} ({Reject} 51. Kg3 $6 Be5 52. Kh3 (52. Ng4 Rxc4+ 53. Nxe5 Rb4 $17) 52... Bc7 $11) 51... Kg7 {[%emt 0:05:12] Prevents Nf7.} 52. Ng4 {[%emt 0:00:00]} Bc3 {[%emt 0:04:58]} 53. Kg3 {[%emt 0:00:00]} Rf8 {[%emt 0:00:06] [#]} (53... Bd2 $142) 54. Bd3 $1 $16 {[%emt 0:03:10] Strongly threatening h6+.} Be1+ {[%emt 0:06:24]} 55. Kg2 {[%emt 0:00:16] h6+ is the strong threat.} Bc3 {[%emt 0:00:46]} (55... Kh8 $16) 56. h6+ $18 {[%emt 0:00:18]} Kh8 {[%emt 0:00:24]} 57. g6 {[%emt 0:01:02] aiming for Ne3.} Rd8 {[%emt 0:00:18]} 58. Bc4 {[%emt 0:00:36] Threatens to win with Ne3.} Rd1 $2 {[%emt 0:00:22]} (58... Rd6) 59. Ne3 {[%emt 0:01:34]} Rd2+ {[%emt 0:00:57]} 60. Kf3 {[%emt 0:00:08] Weighted Error Value: White=0.06 (flawless) /Black=0.13 (very precise)} 1-0